bitfinex/quotes_BTCUSD_20230110
["timestamp","ask_amount","ask_price","bid_price","bid_amount"]
[1673366237849,0.01474475,17334.0,17330.0,0.21323803]
[1673366238108,0.01474475,17334.0,17332.0,0.17221307]
[1673366238381,0.01474475,17334.0,17333.0,1.94533467]
[1673366238622,0.69520943,17335.0,17334.0,0.21046218]
[1673366238863,0.69520943,17335.0,17334.0,0.24549018]
[1673366239117,0.69520943,17335.0,17334.0,0.82239018]
[1673366239373,0.69520943,17335.0,17334.0,0.80578065]
[1673366240153,0.69520943,17335.0,17334.0,1.38268065]
[1673366240419,0.61243765,17337.0,17334.0,0.80578065]
[1673366240670,0.11483765,17337.0,17335.0,0.360887]
[1673366241012,0.11483765,17337.0,17336.0,0.03502]
[1673366241210,0.11483765,17337.0,17336.0,0.2]
[1673366241728,0.11483765,17337.0,17336.0,0.43767789]
[1673366241988,0.11483765,17337.0,17336.0,0.2]
[1673366241989,0.00403765,17337.0,17336.0,0.2]
[1673366242247,0.67755889,17338.0,17336.0,0.561165]
[1673366242248,0.67659654,17338.0,17336.0,0.561165]
[1673366242496,0.67659654,17338.0,17337.0,0.034715]
[1673366242749,0.67659654,17338.0,17336.0,1.353668]
[1673366243012,0.67659654,17338.0,17336.0,1.353607]
[1673366243260,0.2,17339.0,17336.0,1.353607]
[1673366243515,0.59188379,17339.0,17337.0,0.52138228]
[1673366243783,0.2,17338.0,17337.0,1.09448212]
[1673366244021,0.70268379,17339.0,17337.0,1.09448212]
[1673366244282,0.90268379,17339.0,17337.0,1.09448212]
[1673366244782,0.90268379,17339.0,17337.0,1.0934509]
[1673366245337,0.90268379,17339.0,17336.0,0.576802]
[1673366245338,0.3497888,17339.0,17336.0,0.576802]
[1673366245581,0.3497888,17339.0,17334.0,0.77087965]
[1673366245582,0.63890198,17337.0,17334.0,0.91039701]
[1673366245841,0.7113226,17336.0,17334.0,0.91039701]
[1673366246167,0.1105,17337.0,17334.0,1.87017836]
[1673366246168,0.67437083,17337.0,17334.0,1.87017836]
[1673366246352,0.87437083,17337.0,17335.0,0.2]
[1673366246601,0.71835634,17336.0,17334.0,1.87017836]
[1673366246852,0.75734514,17336.0,17334.0,1.87017836]
[1673366247110,0.71835634,17336.0,17334.0,1.29329436]
[1673366247380,0.1105,17337.0,17335.0,0.69436776]
[1673366247630,0.1105,17337.0,17336.0,0.2]
[1673366247891,0.1105,17337.0,17336.0,0.19787394]
[1673366248157,0.1105,17337.0,17335.0,1.27122876]
[1673366248415,0.1105,17337.0,17335.0,0.69436776]
[1673366248730,0.82154531,17337.0,17335.0,0.69436776]
[1673366249190,0.62154531,17337.0,17335.0,0.69436776]
[1673366249477,0.62154531,17337.0,17335.0,1.47123176]
[1673366249732,0.62154531,17337.0,17335.0,1.27123176]
[1673366250262,0.62154531,17337.0,17335.0,1.47123176]
[1673366251004,0.6120964,17337.0,17335.0,2.04809876]
[1673366251256,0.6120964,17337.0,17336.0,0.2]
[1673366251531,0.64,17338.0,17336.0,0.8213957]
[1673366251787,0.64,17338.0,17336.0,1.05907359]
[1673366252040,1.27936565,17338.0,17336.0,1.3982297]
[1673366252283,0.63936565,17338.0,17336.0,1.3982297]
[1673366252798,0.63936565,17338.0,17336.0,1.9750637]
[1673366253094,0.63930565,17338.0,17336.0,1.9750637]
[1673366254099,0.63930565,17338.0,17337.0,0.01523993]
[1673366254336,0.63930565,17338.0,17337.0,0.59204093]
[1673366255852,0.75480953,17340.0,17337.0,0.59204093]
[1673366256104,0.82167824,17339.0,17337.0,1.41187721]
[1673366256350,0.82167824,17339.0,17337.0,1.17419932]
[1673366258872,0.62167824,17339.0,17337.0,1.17419932]
[1673366260154,0.62167824,17339.0,17338.0,0.2]
[1673366260432,0.62167824,17339.0,17337.0,1.75100032]
[1673366261439,0.62167824,17339.0,17338.0,0.2]
[1673366262611,0.12780953,17340.0,17338.0,1.40897125]
[1673366262854,0.84318407,17340.0,17338.0,1.98573825]
[1673366263585,0.83318407,17340.0,17338.0,1.98573825]
[1673366264091,0.82637005,17340.0,17338.0,1.98573825]
[1673366264337,0.82631005,17340.0,17338.0,1.98573825]
[1673366264592,0.1112,17340.0,17339.0,0.54744198]
[1673366264837,1.35607216,17341.0,17339.0,1.12417598]
[1673366265080,0.69827216,17341.0,17339.0,1.12417598]
[1673366265378,0.89827216,17341.0,17339.0,1.12417598]
[1673366265606,0.361165,17340.0,17339.0,0.576734]
[1673366265849,0.561165,17340.0,17338.0,0.776734]
[1673366266092,0.561165,17340.0,17338.0,0.576734]
[1673366266093,0.2,17340.0,17338.0,0.576734]
[1673366266346,0.83447112,17340.0,17338.0,0.576734]
[1673366266637,0.472165,17339.0,17337.0,1.26523]
[1673366266876,0.5111538,17339.0,17337.0,1.26523]
[1673366267118,0.111,17339.0,17337.0,1.26523]
[1673366269394,0.75029344,17339.0,17337.0,1.26523]
[1673366269920,0.75029344,17339.0,17337.0,1.26514104]
[1673366270675,0.75029344,17339.0,17338.0,0.2]
[1673366271469,0.75029344,17339.0,17337.0,1.26514104]
[1673366272257,0.59476946,17338.0,17337.0,0.59192297]
[1673366272573,0.59476946,17338.0,17337.0,0.01515097]
[1673366272574,0.90596946,17338.0,17337.0,0.01515097]
[1673366273091,0.70596946,17338.0,17337.0,0.01515097]
[1673366274846,0.87477354,17338.0,17337.0,0.01515097]
[1673366275098,0.59044445,17338.0,17337.0,0.01515097]
[1673366275606,0.76357354,17338.0,17337.0,0.01515097]
[1673366276130,0.76357354,17338.0,17336.0,0.52774696]
[1673366276934,0.81039493,17337.0,17334.0,1.89327234]
[1673366277140,0.472365,17336.0,17334.0,0.85807674]
[1673366277391,0.1990288,17335.0,17334.0,0.17221307]
[1673366277650,0.472275,17335.0,17333.0,1.01470228]
[1673366277897,0.1501888,17335.0,17333.0,0.75638268]
[1673366278158,0.1112,17335.0,17333.0,0.75638268]
[1673366278412,0.1112,17335.0,17333.0,0.95638268]
[1673366278920,0.1112,17335.0,17333.0,0.78416961]
[1673366279180,0.1112,17335.0,17333.0,0.58416961]
[1673366279681,0.5678145,17335.0,17333.0,0.75638268]
[1673366280188,0.5678145,17335.0,17333.0,0.78416961]
[1673366280436,0.5678145,17335.0,17333.0,0.95638268]
[1673366280688,0.5678145,17335.0,17333.0,0.78416961]
[1673366281684,0.5678145,17335.0,17333.0,0.95638268]
[1673366281940,0.5678145,17335.0,17333.0,1.53331268]
[1673366284209,0.5678145,17335.0,17333.0,1.33331268]
[1673366284478,0.5678145,17335.0,17333.0,1.16109961]
[1673366285493,0.5678145,17335.0,17333.0,1.32831268]
[1673366285748,0.5678145,17335.0,17333.0,1.15609961]
[1673366286785,0.5678145,17335.0,17333.0,0.57916961]
[1673366287297,0.4113145,17335.0,17333.0,0.57916961]
[1673366288195,0.4113145,17335.0,17333.0,0.77916961]
[1673366288459,0.4113145,17335.0,17333.0,0.57916961]
[1673366289751,0.4113145,17335.0,17333.0,0.77916961]
[1673366290017,0.4113145,17335.0,17332.0,0.776934]
[1673366290276,0.4113145,17335.0,17331.0,0.58118711]
[1673366290277,0.672275,17334.0,17331.0,0.58118711]
[1673366290532,0.361075,17333.0,17331.0,1.1147656]
[1673366290866,0.25006855,17334.0,17331.0,1.1147656]
[1673366291092,0.1112,17334.0,17333.0,0.2]
[1673366291860,0.5225145,17335.0,17333.0,0.72349397]
[1673366292164,1.50685569,17337.0,17334.0,0.51387594]
[1673366292165,1.06026109,17337.0,17334.0,0.51387594]
[1673366292389,1.18996466,17336.0,17335.0,0.23767789]
[1673366292648,1.18996466,17336.0,17334.0,0.51387594]
[1673366292908,0.361075,17335.0,17334.0,0.51387594]
[1673366293163,0.2,17335.0,17334.0,0.51387594]
[1673366294154,0.561075,17335.0,17334.0,0.51387594]
[1673366294902,0.561075,17335.0,17332.0,0.776942]
[1673366295158,1.0167848,17335.0,17333.0,0.61119936]
[1673366295413,0.977796,17335.0,17332.0,0.776944]
[1673366295661,1.0167848,17335.0,17332.0,1.31811757]
[1673366296429,0.977796,17335.0,17332.0,1.11811757]
[1673366296929,0.977796,17335.0,17332.0,0.54117357]
[1673366297170,0.977796,17335.0,17332.0,0.55733188]
[1673366297416,1.11865284,17334.0,17332.0,0.01615831]
[1673366297669,0.361075,17333.0,17332.0,0.01615831]
[1673366297921,0.2,17333.0,17332.0,0.01615831]
[1673366300151,0.85786432,17333.0,17332.0,0.01615831]
[1673366300400,1.21893932,17333.0,17332.0,0.01615831]
[1673366300644,0.85786432,17333.0,17332.0,0.01615831]
[1673366301138,1.21893932,17333.0,17332.0,0.01615831]
[1673366301384,0.85786432,17333.0,17332.0,0.01615831]
[1673366302159,0.85786432,17333.0,17331.0,0.62830884]
[1673366303157,0.50650579,17332.0,17331.0,0.00422011]
[1673366305662,0.88635117,17332.0,17331.0,0.00422011]
[1673366306208,1.08635117,17332.0,17331.0,0.00422011]
[1673366311293,1.66331817,17332.0,17331.0,0.00422011]
[1673366311569,2.25726584,17332.0,17331.0,0.00422011]
[1673366311807,2.26576584,17332.0,17331.0,0.00422011]
[1673366312569,3.00239296,17332.0,17331.0,0.00422011]
[1673366313115,3.17552205,17332.0,17331.0,0.00422011]
[1673366313629,3.00239296,17332.0,17331.0,0.00422011]
[1673366314868,3.17552205,17332.0,17331.0,0.00422011]
[1673366315642,3.76933877,17332.0,17331.0,0.00422011]
[1673366315888,3.94246786,17332.0,17331.0,0.00422011]
[1673366316401,4.20166246,17332.0,17331.0,0.00422011]
[1673366316652,3.94246786,17332.0,17331.0,0.00422011]
[1673366316876,4.12288365,17332.0,17331.0,0.00422011]
[1673366317356,4.28775252,17332.0,17331.0,0.00422011]
[1673366318593,4.02855792,17332.0,17331.0,0.00422011]
[1673366318816,4.28775252,17332.0,17331.0,0.00422011]
[1673366319067,4.02855792,17332.0,17331.0,0.00422011]
[1673366319331,3.44871288,17332.0,17331.0,0.00422011]
[1673366319584,3.70790748,17332.0,17331.0,0.00422011]
[1673366320103,3.59760748,17332.0,17331.0,0.00422011]
[1673366320877,4.25630028,17332.0,17331.0,0.00422011]
[1673366321152,4.1587863,17332.0,17331.0,0.00422011]
[1673366321409,4.9518474,17332.0,17331.0,0.00422011]
[1673366321671,4.60324736,17332.0,17331.0,0.0029701]
[1673366321938,0.2,17331.0,17329.0,0.004671]
[1673366322190,2.05051445,17330.0,17329.0,0.004671]
[1673366322518,3.50458245,17330.0,17329.0,0.004671]
[1673366322966,3.84850322,17330.0,17329.0,0.004671]
[1673366323214,4.21186828,17330.0,17329.0,0.004671]
[1673366324497,4.71034248,17330.0,17329.0,0.004671]
[1673366325541,4.4524019,17330.0,17329.0,0.004671]
[1673366326281,3.78197407,17330.0,17329.0,0.004671]
[1673366326493,4.45375991,17330.0,17329.0,0.004671]
[1673366326776,4.55819078,17330.0,17329.0,0.004671]
[1673366327519,4.3002502,17330.0,17329.0,0.004671]
[1673366328510,4.55819078,17330.0,17329.0,0.004671]
[1673366329005,4.3002502,17330.0,17329.0,0.004671]
[1673366329504,4.55819078,17330.0,17329.0,0.004671]
[1673366331512,4.03991465,17330.0,17329.0,0.004671]
[1673366332781,4.56809539,17330.0,17329.0,0.004671]
[1673366333022,4.31015481,17330.0,17329.0,0.004671]
[1673366333276,4.56809539,17330.0,17329.0,0.004671]
[1673366333803,5.14748645,17330.0,17329.0,0.004671]
[1673366334308,4.56809539,17330.0,17329.0,0.004671]
[1673366335062,3.81811465,17330.0,17329.0,0.004671]
[1673366335561,4.50829661,17330.0,17329.0,0.004671]
[1673366336334,3.81811465,17330.0,17329.0,0.004671]
[1673366337145,3.99006828,17330.0,17329.0,0.004671]
[1673366337396,4.5007973,17330.0,17329.0,0.004671]
[1673366339682,5.02887731,17330.0,17329.0,0.004671]
[1673366339939,4.4907973,17330.0,17329.0,0.004671]
[1673366340246,5.20322446,17330.0,17329.0,0.004671]
[1673366340473,4.4907973,17330.0,17329.0,0.004671]
[1673366340991,5.03810308,17330.0,17329.0,0.004671]
[1673366341256,4.35548192,17330.0,17329.0,0.004671]
[1673366341557,4.52737406,17330.0,17329.0,0.004671]
[1673366342013,4.48421641,17330.0,17329.0,0.004671]
[1673366342528,4.31234889,17330.0,17329.0,0.004671]
[1673366342783,3.3191175,17330.0,17329.0,0.004671]
[1673366343025,3.87705808,17330.0,17329.0,0.004671]
[1673366343272,3.75436064,17330.0,17329.0,0.004671]
[1673366343522,4.8461213,17330.0,17329.0,0.004671]
[1673366343798,4.31230122,17330.0,17329.0,0.004671]
[1673366344308,4.48416874,17330.0,17329.0,0.004671]
[1673366344557,4.656279,17330.0,17329.0,0.004671]
[1673366344818,4.65627926,17330.0,17329.0,0.004671]
[1673366345076,4.48416874,17330.0,17329.0,0.004671]
[1673366345335,4.01236051,17330.0,17329.0,0.004671]
[1673366345589,1.98449625,17330.0,17329.0,0.004671]
[1673366345850,1.63342125,17330.0,17329.0,0.004671]
[1673366346881,1.2980958,17330.0,17329.0,0.004671]
[1673366347120,1.3065958,17330.0,17329.0,0.004671]
[1673366347641,1.6677058,17330.0,17329.0,0.004671]
[1673366347901,1.3065958,17330.0,17329.0,0.004671]
[1673366348174,0.60244767,17330.0,17329.0,0.004671]
[1673366348456,0.59394767,17330.0,17329.0,0.70427561]
[1673366348706,0.65655801,17331.0,17329.0,0.70427561]
[1673366348951,1.25050568,17331.0,17329.0,0.70427561]
[1673366349221,1.45050568,17331.0,17329.0,0.70427561]
[1673366349962,1.62261822,17331.0,17329.0,0.70427561]
[1673366350461,1.45050568,17331.0,17329.0,0.70427561]
[1673366350966,1.62261822,17331.0,17329.0,0.70427561]
[1673366351745,0.79375376,17330.0,17329.0,0.004671]
[1673366353205,0.72585711,17330.0,17329.0,0.004671]
[1673366354492,0.59375376,17330.0,17329.0,0.004671]
[1673366356237,0.79375376,17330.0,17329.0,0.004671]
[1673366357529,0.59375376,17330.0,17329.0,0.004671]
[1673366358513,0.79375376,17330.0,17329.0,0.004671]
[1673366358757,0.59375376,17330.0,17329.0,0.004671]
[1673366363301,0.79375376,17330.0,17329.0,0.004671]
[1673366364587,0.59375376,17330.0,17329.0,0.004671]
[1673366366093,0.59375376,17330.0,17329.0,0.64692827]
[1673366366352,0.59394767,17331.0,17329.0,0.84692827]
[1673366367124,1.12475599,17331.0,17329.0,0.84692827]
[1673366367373,1.49686853,17331.0,17329.0,0.64692827]
[1673366368897,1.12475599,17331.0,17329.0,0.64692827]
[1673366369154,1.29686853,17331.0,17329.0,0.64692827]
[1673366369414,1.12475599,17331.0,17329.0,0.64692827]
[1673366370177,1.12475599,17331.0,17329.0,0.84692827]
[1673366370754,1.12475599,17331.0,17329.0,1.42399427]
[1673366371214,0.69164814,17332.0,17330.0,0.89936328]
[1673366371716,0.86376068,17332.0,17330.0,0.69936328]
[1673366371961,1.06376068,17332.0,17330.0,0.69936328]
[1673366373490,0.86376068,17332.0,17330.0,0.89936328]
[1673366374787,1.06376068,17332.0,17330.0,0.69936328]
[1673366375517,1.32170126,17332.0,17330.0,0.69936328]
[1673366375784,1.12170126,17332.0,17330.0,0.69936328]
[1673366376027,0.86376068,17332.0,17330.0,0.69936328]
[1673366378827,0.86376068,17332.0,17330.0,1.27639528]
[1673366379572,0.82493403,17332.0,17330.0,1.27639528]
[1673366379820,0.82493403,17332.0,17331.0,0.2]
[1673366380069,0.82493403,17332.0,17330.0,1.27639528]
[1673366382094,1.08287461,17332.0,17330.0,1.27639528]
[1673366383464,0.82493403,17332.0,17330.0,1.27639528]
[1673366384156,1.28287461,17332.0,17330.0,1.27639528]
[1673366384408,0.68792611,17331.0,17330.0,1.27639528]
[1673366384662,0.88792611,17331.0,17329.0,0.581713]
[1673366384927,1.31797923,17331.0,17329.0,0.004671]
[1673366385187,0.72118405,17330.0,17329.0,0.004671]
[1673366385447,0.89329659,17330.0,17329.0,0.004671]
[1673366385961,0.69329659,17330.0,17329.0,0.004671]
[1673366390332,0.52118405,17330.0,17329.0,0.004671]
[1673366390895,0.17211254,17331.0,17329.0,0.204671]
[1673366391161,0.17211254,17331.0,17329.0,0.781738]
[1673366391428,0.83045599,17331.0,17329.0,1.33324779]
[1673366391670,0.65834345,17331.0,17329.0,1.50546086]
[1673366391924,0.83045599,17331.0,17329.0,1.50546086]
[1673366392213,0.17211254,17331.0,17329.0,1.91031479]
[1673366392533,0.17211254,17332.0,17329.0,2.57852535]
[1673366392806,0.10709855,17332.0,17330.0,0.47221]
[1673366393085,0.10709855,17332.0,17331.0,0.84918169]
[1673366393335,0.10709855,17332.0,17331.0,0.74578269]
[1673366393899,0.90244555,17333.0,17331.0,0.54578269]
[1673366394383,1.10244555,17333.0,17331.0,0.54578269]
[1673366394668,0.57569367,17334.0,17331.0,2.47898525]
[1673366394917,0.57569367,17334.0,17332.0,0.73332307]
[1673366394918,0.77569367,17334.0,17332.0,0.73332307]
[1673366395173,0.77569367,17334.0,17332.0,1.52612507]
[1673366395423,0.57569367,17334.0,17332.0,1.52612507]
[1673366395670,0.2,17335.0,17332.0,1.52612507]
[1673366395916,0.86840858,17335.0,17333.0,0.54495049]
[1673366398116,0.66840858,17335.0,17333.0,0.54495049]
[1673366398624,0.86840858,17335.0,17333.0,0.54495049]
[1673366399904,0.66840858,17335.0,17333.0,0.54495049]
[1673366400177,0.66840858,17335.0,17333.0,1.12188249]
[1673366400695,0.86840858,17335.0,17333.0,1.12188249]
[1673366401469,0.66840858,17335.0,17333.0,1.12188249]
[1673366401726,0.66630258,17335.0,17334.0,0.2]
[1673366401973,0.66630258,17335.0,17333.0,1.12188249]
[1673366402215,0.66630258,17335.0,17333.0,1.32188249]
[1673366402789,0.66630258,17335.0,17333.0,1.12188249]
[1673366403229,0.86630258,17335.0,17333.0,1.11920849]
[1673366403533,0.86630258,17335.0,17333.0,1.69614249]
[1673366407311,0.66630258,17335.0,17334.0,0.63743213]
[1673366408121,0.01565525,17336.0,17334.0,0.63743213]
[1673366408373,0.61385157,17336.0,17334.0,0.63743213]
[1673366408632,0.61385157,17336.0,17334.0,1.21433213]
[1673366408883,0.61385157,17336.0,17335.0,0.60541125]
[1673366409135,0.01565525,17336.0,17335.0,1.75914525]
[1673366410886,0.01565525,17336.0,17335.0,2.12025525]
[1673366411399,0.01565525,17336.0,17335.0,1.86239825]
[1673366411659,0.01565525,17336.0,17335.0,1.75914525]
[1673366412185,0.01565525,17336.0,17335.0,2.12025525]
[1673366412453,0.01565525,17336.0,17335.0,2.23135525]
[1673366412952,0.01565525,17336.0,17335.0,1.87024525]
[1673366413953,0.01565525,17336.0,17335.0,2.23135525]
[1673366415747,0.01565525,17336.0,17335.0,0.937977]
[1673366415748,0.78808236,17336.0,17335.0,0.937977]
[1673366415995,1.14919236,17336.0,17334.0,0.50697702]
[1673366416245,0.64269236,17336.0,17334.0,0.50697702]
[1673366416818,0.2,17335.0,17334.0,0.50697702]
[1673366417859,0.84269236,17336.0,17334.0,0.50697702]
[1673366418300,0.2,17335.0,17334.0,0.50697702]
[1673366419581,0.79372733,17335.0,17332.0,1.2812689]
[1673366419827,0.83271613,17335.0,17332.0,1.2812689]
[1673366420334,0.79372733,17335.0,17332.0,1.2812689]
[1673366421121,0.83271613,17335.0,17331.0,1.19290378]
[1673366421365,1.85441203,17335.0,17331.0,0.61593278]
[1673366421635,1.85441203,17335.0,17331.0,0.85361067]
[1673366421636,0.58389389,17334.0,17331.0,0.85361067]
[1673366421873,0.2,17333.0,17331.0,0.61593278]
[1673366423185,0.19,17333.0,17331.0,0.61593278]
[1673366423440,0.19,17333.0,17331.0,0.81593278]
[1673366423714,0.19,17333.0,17331.0,0.61593278]
[1673366423969,0.19,17333.0,17331.0,1.19292378]
[1673366424498,0.75702711,17333.0,17331.0,1.19292378]
[1673366425509,0.75702711,17333.0,17331.0,1.08242378]
[1673366426538,0.56702711,17333.0,17331.0,1.28242378]
[1673366427844,0.56702711,17333.0,17331.0,1.08242378]
[1673366428623,0.56702711,17333.0,17331.0,1.28242378]
[1673366428891,0.56702711,17333.0,17331.0,1.08242378]
[1673366430913,0.56702711,17333.0,17331.0,0.50543278]
[1673366431668,0.2,17332.0,17331.0,0.50543278]
[1673366431930,0.2,17332.0,17329.0,0.692935]
[1673366432173,0.0474888,17332.0,17330.0,0.88270588]
[1673366432402,0.0085,17332.0,17330.0,0.88270588]
[1673366432688,0.2085,17332.0,17330.0,0.88270588]
[1673366432941,0.2085,17332.0,17330.0,0.68270588]
[1673366433707,0.74191219,17332.0,17330.0,0.68270588]
[1673366435776,0.54191219,17332.0,17330.0,0.68270588]
[1673366438041,0.54191219,17332.0,17330.0,0.88270588]
[1673366438303,0.54191219,17332.0,17330.0,1.45973388]
[1673366439272,1.48284767,17335.0,17331.0,0.2]
[1673366439510,0.61409787,17334.0,17332.0,0.59878789]
[1673366439836,0.81409787,17334.0,17332.0,0.23767789]
[1673366440050,0.81409787,17334.0,17332.0,1.27733097]
[1673366440051,0.0085,17334.0,17332.0,1.27733097]
[1673366440580,0.2085,17335.0,17333.0,0.56111]
[1673366440842,0.2085,17335.0,17334.0,0.103309]
[1673366441090,0.2085,17335.0,17333.0,0.776927]
[1673366441822,0.2085,17335.0,17332.0,1.27733397]
[1673366442309,0.9205417,17335.0,17332.0,1.27733397]
[1673366442563,0.9205417,17335.0,17332.0,1.85430097]
[1673366443040,0.9205417,17335.0,17332.0,1.27733397]
[1673366443543,0.6477623,17334.0,17332.0,1.27733397]
[1673366446057,0.6477623,17334.0,17332.0,1.27233397]
[1673366449018,0.64941845,17335.0,17333.0,0.64440078]
[1673366449519,0.2,17334.0,17333.0,0.63940078]
[1673366449790,0.2085,17334.0,17333.0,0.63940078]
[1673366450296,0.0085,17334.0,17333.0,0.63940078]
[1673366452333,0.0085,17334.0,17333.0,0.83940078]
[1673366452574,0.0085,17334.0,17333.0,1.41633478]
[1673366453313,0.0085,17334.0,17333.0,1.21633478]
[1673366454309,0.0085,17334.0,17333.0,1.41633478]
[1673366455048,0.0085,17334.0,17333.0,1.21633478]
[1673366455554,0.18784207,17336.0,17334.0,0.2]
[1673366455805,0.18784207,17336.0,17334.0,1.01456789]
[1673366455806,0.8958154,17336.0,17334.0,1.01456789]
[1673366456058,0.8958154,17336.0,17334.0,0.57689]
[1673366456336,0.8958154,17336.0,17334.0,0.77689]
[1673366457606,0.72362858,17336.0,17334.0,1.39530882]
[1673366458098,0.72362858,17336.0,17335.0,0.62617009]
[1673366458341,0.73212858,17336.0,17335.0,0.62617009]
[1673366459604,0.73212858,17336.0,17334.0,1.153753]
[1673366459848,0.73212858,17336.0,17334.0,0.576872]
[1673366459849,0.93212858,17336.0,17334.0,0.576872]
[1673366460345,0.80855948,17335.0,17334.0,0.576872]
[1673366460595,0.80855948,17335.0,17333.0,1.2634964]
[1673366460842,0.80855948,17335.0,17332.0,0.17262709]
[1673366460843,0.14539,17334.0,17332.0,0.17262709]
[1673366461093,0.1928788,17334.0,17332.0,0.55428033]
[1673366461345,0.0085,17334.0,17333.0,0.67591233]
[1673366462849,0.0085,17334.0,17332.0,0.65560093]
[1673366463107,0.0085,17334.0,17331.0,0.94959909]
[1673366463351,0.61957652,17334.0,17331.0,1.4572207]
[1673366463606,0.74435904,17334.0,17331.0,1.4572207]
[1673366463859,0.70537024,17334.0,17331.0,1.4572207]
[1673366464111,0.58058772,17334.0,17331.0,1.28459361]
[1673366464394,0.58058772,17334.0,17331.0,1.4572207]
[1673366464665,0.58058772,17334.0,17331.0,1.28459361]
[1673366465635,0.51327369,17333.0,17331.0,1.28459361]
[1673366466143,0.56545106,17333.0,17331.0,1.28459361]
[1673366466665,0.56545106,17333.0,17332.0,0.36111]
[1673366466920,0.51327369,17333.0,17331.0,1.28459361]
[1673366467419,0.51327369,17333.0,17332.0,0.36111]
[1673366467675,0.51327369,17333.0,17332.0,0.75793677]
[1673366467928,0.51327369,17333.0,17332.0,0.55793677]
[1673366468441,0.589144,17334.0,17332.0,0.55793677]
[1673366468924,0.76133082,17334.0,17332.0,0.55793677]
[1673366469194,0.2,17333.0,17332.0,0.55793677]
[1673366469923,0.33512188,17333.0,17330.0,0.74963209]
[1673366470184,0.33512188,17333.0,17330.0,0.54422046]
[1673366470185,1.02194619,17333.0,17330.0,0.54422046]
[1673366470442,1.02194619,17333.0,17330.0,0.74422046]
[1673366470699,1.02194619,17333.0,17330.0,0.54422046]
[1673366470700,0.69268426,17332.0,17330.0,0.54422046]
[1673366470955,0.70118426,17332.0,17330.0,0.54422046]
[1673366471205,0.2,17331.0,17330.0,0.54412245]
[1673366471457,0.2,17331.0,17329.0,0.68811861]
[1673366472736,1.07337108,17332.0,17329.0,0.68811861]
[1673366472998,0.2,17331.0,17329.0,0.68811861]
[1673366473251,0.77935348,17331.0,17329.0,0.68811861]
[1673366474010,0.57935348,17331.0,17329.0,0.88811861]
[1673366474862,0.57935348,17331.0,17329.0,0.68811861]
[1673366475287,0.57935348,17331.0,17329.0,0.88811861]
[1673366475536,0.57935348,17331.0,17329.0,0.68811861]
[1673366476293,0.57935348,17331.0,17329.0,0.88811861]
[1673366476801,0.57935348,17331.0,17329.0,1.46518161]
[1673366477801,0.57935348,17331.0,17329.0,1.26518161]
[1673366478051,0.57935348,17331.0,17329.0,0.68811861]
[1673366479097,0.57935348,17331.0,17329.0,0.88811861]
[1673366480110,0.57935348,17331.0,17329.0,0.68811861]
[1673366480609,0.57935348,17331.0,17329.0,0.88811861]
[1673366482203,0.57935348,17331.0,17330.0,0.2216]
[1673366482472,0.58785348,17331.0,17330.0,0.2216]
[1673366484073,0.58785348,17331.0,17329.0,0.79931861]
[1673366484329,0.58785348,17331.0,17329.0,0.99931861]
[1673366484826,0.58785348,17331.0,17329.0,0.79931861]
[1673366485589,0.58785348,17331.0,17329.0,0.99931861]
[1673366485847,0.58785348,17331.0,17329.0,0.79931861]
[1673366486105,0.58785348,17331.0,17329.0,0.99931861]
[1673366486352,0.58785348,17331.0,17329.0,0.79931861]
[1673366488428,0.70160035,17330.0,17329.0,0.004671]
[1673366488695,1.07121035,17330.0,17329.0,0.004671]
[1673366488946,0.91010035,17330.0,17329.0,0.004671]
[1673366489968,1.27121035,17330.0,17329.0,0.004671]
[1673366491009,0.91010035,17330.0,17329.0,0.004671]
[1673366491824,1.27121035,17330.0,17329.0,0.004671]
[1673366492874,0.91010035,17330.0,17329.0,0.004671]
[1673366493074,1.27121035,17330.0,17329.0,0.004671]
[1673366493574,0.91010035,17330.0,17329.0,0.00457969]
[1673366493832,1.27121035,17330.0,17329.0,0.00457969]
[1673366494344,0.91010035,17330.0,17329.0,0.00457969]
[1673366494593,0.71010035,17330.0,17329.0,0.00457969]
[1673366499178,0.71010035,17330.0,17329.0,0.64649201]
[1673366500443,0.70160035,17330.0,17329.0,0.64649201]
[1673366503051,2.06103976,17332.0,17329.0,0.8841699]
[1673366503052,0.43076572,17332.0,17329.0,0.8841699]
[1673366503306,0.65005839,17332.0,17331.0,0.1106]
[1673366503555,0.65855839,17332.0,17331.0,0.47171]
[1673366503811,0.65855839,17332.0,17331.0,0.1106]
[1673366505884,0.0085,17332.0,17331.0,0.1106]
[1673366506136,0.0085,17332.0,17331.0,0.63232001]
[1673366506395,1.0715062,17333.0,17331.0,0.63232001]
[1673366506653,0.69931938,17333.0,17331.0,1.29872001]
[1673366506944,0.63076572,17334.0,17332.0,0.80125833]
[1673366506945,0.37218682,17334.0,17332.0,0.80125833]
[1673366507176,1.07983358,17335.0,17333.0,0.36111]
[1673366507434,1.07983358,17335.0,17333.0,0.81460589]
[1673366507435,0.82125468,17335.0,17333.0,0.81460589]
[1673366507696,0.70664595,17334.0,17333.0,0.576928]
[1673366507956,0.87883277,17334.0,17333.0,0.1112]
[1673366508256,1.07883277,17334.0,17333.0,0.1112]
[1673366511014,0.87883277,17334.0,17333.0,0.1112]
[1673366511739,0.70664595,17334.0,17333.0,0.1112]
[1673366515602,0.90664595,17334.0,17332.0,1.39798477]
[1673366517628,0.90664595,17334.0,17332.0,0.82104777]
[1673366518384,0.2,17333.0,17332.0,0.1112]
[1673366519116,0.90664595,17334.0,17332.0,0.1112]
[1673366519621,0.2,17333.0,17332.0,0.1112]
[1673366520133,0.2,17333.0,17331.0,1.24541114]
[1673366520386,0.73757907,17333.0,17331.0,1.24541114]
[1673366520647,0.94862857,17333.0,17330.0,0.76999625]
[1673366520897,0.94862857,17333.0,17331.0,0.52274234]
[1673366521159,0.90963977,17333.0,17331.0,0.52274234]
[1673366522154,0.73757907,17333.0,17331.0,0.52274234]
[1673366522417,0.90950724,17333.0,17331.0,0.52274234]
[1673366524722,0.70950724,17333.0,17331.0,0.52274234]
[1673366525237,0.70950724,17333.0,17331.0,0.72274234]
[1673366526290,0.70950724,17333.0,17331.0,1.09974134]
[1673366527037,0.70950724,17333.0,17331.0,0.52274234]
[1673366528050,0.70950724,17333.0,17331.0,0.52262967]
[1673366528313,0.2,17332.0,17331.0,0.52262967]
[1673366528806,0.53757907,17333.0,17331.0,0.52262967]
[1673366530359,0.53757907,17333.0,17331.0,0.72262967]
[1673366530621,0.69178286,17334.0,17331.0,1.29962567]
[1673366530861,0.69178286,17334.0,17331.0,2.22550356]
[1673366531114,0.69178286,17334.0,17332.0,0.56111]
[1673366531366,0.69178286,17334.0,17333.0,0.103338]
[1673366531623,0.70028286,17334.0,17332.0,0.776963]
[1673366532387,0.70028286,17334.0,17332.0,0.576963]